[Event "European Women Blitz-ch 2024"]
[Site "Monaco"]
[Date "2025.01.10"]
[Round "2.6"]
[White "Agrest, Inna"]
[Black "Khademalsharieh, Sarasadat"]
[Result "0-1"]
[Annotator "TA"]
[ECO "C77"]
[WhiteElo "2159"]
[BlackElo "2458"]
[PlyCount "99"]
[EventDate "2025.01.06"]
[EventType "swiss"]
[EventCountry "MNC"]
[SourceTitle "playchess.com"]
[Source "ChessBase"]
[SourceQuality "1"]
[TimeControl "180+2"]

{[%evp 18,99,38,24,29,3,22,18,10,14,14,0,16,-27,0,-24,-23,-38,-27,-51,-7,-59,-52,-64,-44,-38,-22,-175,-51,-197,-187,-199,-187,-171,-151,-147,-124,-150,-143,-185,-202,-290,-283,-346,-335,-337,-333,-379,-386,-512,-502,-470,-474,-1391,-1356,-1253,-1114,-1110,-1083,-1302,-1240,-1143,-229,-1190,-1190,-1190,-1190,-1185,-1155,-1170,-960,-1372,-1198,-1170,-1140,-1116,-1002,-29985,-29986,-29986,-29987,-29990,-29991,-29990]} 1. e4 {[%emt 0:00:01]} e5 {[%emt 0:00:01]} 2. Nf3 {[%emt 0:00:01]} Nc6 {[%emt 0:00:01]} 3. Bb5 {[%emt 0:00:01]} a6 {[%emt 0:00:02]} 4. Ba4 {[%emt 0:00:01]} Nf6 {[%emt 0:00:02]} 5. d3 {[%emt 0:00:02]} d6 {[%emt 0:00:05]} 6. c3 {[%emt 0:00:01]} Bd7 {[%emt 0:00:01]} 7. O-O {[%emt 0:00:02]} g6 {[%emt 0:00:02]} 8. Re1 {[%emt 0:00:03]} Bg7 {[%emt 0:00:01]} 9. Nbd2 {[%emt 0:00:10][%cal Bb1d2,Bd2f1,Bf1e3][%mdl 32]} O-O {[%emt 0:00:02]} 10. Nf1 {[%emt 0:00:02]} Nh5 {[%emt 0:00:13]} 11. d4 {[%emt 0:00:32]} Qe8 {[%emt 0:00:16][%cal Oc6d4]} 12. Bb3 {[%emt 0:00:37]} Bg4 {[%emt 0:00:08]} 13. d5 {[%emt 0:00:48]} Ne7 {[%emt 0:00:11]} 14. Ne3 {[%emt 0:00:05]} Bd7 {[%emt 0:00:03]} 15. Nd2 {[%emt 0:00:20]} Nf4 {[%emt 0:00:07]} 16. Ndf1 {[%emt 0:00:10]} f5 {[%emt 0:00:06]} 17. f3 {[%emt 0:00:02]} Nh5 {[%emt 0:00:13]} 18. c4 {[%emt 0:00:09][%cal Oc4c5]} Nf6 {[%emt 0:00:07]} 19. Bc2 {[%emt 0:00:06]} (19. exf5 $11 Nxf5 20. Nxf5 gxf5 21. c5) 19... f4 $15 {[%emt 0:00:02]} 20. Ng4 {[%emt 0:00:04]} Nxg4 {[%emt 0:00:18]} 21. fxg4 {[%emt 0:00:01]} g5 {[%emt 0:00:02][%cal Oh7h5]} 22. Nd2 $2 {[%emt 0:00:14]} (22. h3 $11 {and White is okay.}) 22... Kh8 {[%emt 0:00:01]} (22... h5 $19 23. c5 (23. gxh5 g4 $17) 23... Bxg4 (23... dxc5 24. gxh5 g4 25. Nc4 $17)) 23. Nf3 {[%emt 0:00:10]} (23. h3 $15) 23... Bxg4 {[%emt 0:00:03]} 24. h3 {[%emt 0:00:02]} Bh5 {[%emt 0:00:05]} 25. Qd3 {[%emt 0:00:01]} Bf6 {[%emt 0:00:05]} 26. Nh2 {[%emt 0:00:01]} Qd7 {[%emt 0:00:13]} 27. Bd2 {[%emt 0:00:01]} Rg8 {[%emt 0:00:01]} 28. Kh1 {[%emt 0:00:01]} g4 {[%emt 0:00:02]} 29. hxg4 {[%emt 0:00:03]} (29. Rg1 {keeps fighting.}) 29... Bxg4 $19 {[%emt 0:00:02]} 30. Bd1 {[%emt 0:00:02]} Bxd1 {[%emt 0:00:04]} 31. Raxd1 {[%emt 0:00:01]} Bh4 {[%emt 0:00:06]} 32. Rf1 {[%emt 0:00:01]} Bg3 {[%emt 0:00:02]} 33. Be1 {[%emt 0:00:02]} Qe8 {[%emt 0:00:07]} 34. Bxg3 {[%emt 0:00:02]} fxg3 {[%emt 0:00:05]} (34... Rxg3 35. Rf3 Rg5 36. Rh3 $17) 35. Nf3 {[%emt 0:00:02]} (35. Qf3 $142 gxh2 36. c5) 35... Qh5+ {[%emt 0:00:01]} 36. Kg1 {[%emt 0:00:01]} Raf8 {[%emt 0:00:01]} 37. Qe3 {[%emt 0:00:03]} Rg4 {[%emt 0:00:14]} 38. Rfe1 {[%emt 0:00:02] [#]} Rxf3 $1 {[%emt 0:00:07][%mdl 512]} 39. Qxf3 {[%emt 0:00:04]} Qh2+ $40 {[%emt 0:00:01][%mdl 128] Black wants a kill.} 40. Kf1 {[%emt 0:00:01]} Rf4 {[%emt 0:00:01]} 41. Ke2 {[%emt 0:00:01]} Rxf3 {[%emt 0:00:02]} 42. Kxf3 {[%emt 0:00:01]} Qh4 {[%emt 0:00:03] Strongly threatening ...Qf4+.} 43. Ke3 {[%emt 0:00:04]} Ng6 {[%emt 0:00:03]} 44. Rf1 {[%emt 0:00:01]} Nf4 {[%emt 0:00:02]} 45. Rd2 {[%emt 0:00:03]} Qg5 {[%emt 0:00:02][%csl LRd5,LRg2]} 46. Kf3 {[%emt 0:00:02]} Ng6 {[%emt 0:00:07]} 47. Rc2 {[%emt 0:00:02]} Qf4+ {[%emt 0:00:02]} 48. Ke2 {[%emt 0:00:01]} Qxe4+ {[%emt 0:00:01]} 49. Kd2 {[%emt 0:00:01]} Qxg2+ {[%emt 0:00:02]} 50. Kd3 {[%emt 0:00:14]} 0-1

[Event "European Women Blitz-ch 2024"]
[Site "Monaco"]
[Date "2025.01.10"]
[Round "2.7"]
[White "Paehtz, Elisabeth"]
[Black "Shvedova, Alexandra"]
[Result "1-0"]
[Annotator "TA"]
[ECO "D02"]
[WhiteElo "2428"]
[BlackElo "2266"]
[PlyCount "61"]
[EventDate "2025.01.06"]
[EventType "swiss"]
[EventCountry "MNC"]
[SourceTitle "playchess.com"]
[Source "ChessBase"]
[SourceQuality "1"]
[TimeControl "180+2"]

{[%evp 9,61,-1,3,-12,-6,-17,-9,-13,-24,-33,23,18,7,0,37,22,38,14,39,43,42,-8,39,12,40,0,0,0,15,0,113,100,106,93,91,115,131,123,108,103,92,22,768,-14,766,770,772,772,742,720,1412,1347,5589,5514]} 1. d4 {[%emt 0:00:01]} Nf6 {[%emt 0:00:01]} 2. Nf3 {[%emt 0:00:01]} d5 {[%emt 0:00:01]} 3. c3 {[%emt 0:00:01]} e6 {[%emt 0:00:27]} 4. Bf4 {[%emt 0:00:02]} c5 {[%emt 0:00:03]} 5. e3 {[%emt 0:00:01]} Bd6 {[%emt 0:00:04]} 6. Bg3 {[%emt 0:00:01]} Qc7 {[%emt 0:00:05]} 7. Ne5 {[%emt 0:00:02]} O-O {[%emt 0:00:20]} 8. Nd2 {[%emt 0:00:02]} Nbd7 {[%emt 0:00:08]} 9. f4 {[%emt 0:00:01]} a6 {[%emt 0:00:13]} ({Black should try} 9... Ne4 $15) 10. Bd3 $11 {[%emt 0:00:02]} b5 {[%emt 0:00:15]} 11. O-O {[%emt 0:00:10]} b4 {[%emt 0:00:02]} 12. cxb4 {[%emt 0:00:13]} cxd4 {[%emt 0:00:23]} 13. exd4 {[%emt 0:00:02]} Qb6 {[%emt 0:00:01]} 14. Bf2 {[%emt 0:00:16]} Qxb4 {[%emt 0:00:03]} 15. Qc2 {[%emt 0:00:12]} (15. Rb1 $14) 15... h6 {[%emt 0:00:13]} (15... a5 $11 {is more appropriate.}) 16. Nb3 {[%emt 0:00:10]} Bb7 {[%emt 0:00:16]} 17. Nxd7 {[%emt 0:00:14]} Nxd7 {[%emt 0:00:01]} 18. f5 {[%emt 0:00:44]} Rac8 {[%emt 0:00:02] Repels Nc5} 19. Qe2 {[%emt 0:00:01][%csl LRa6,LRe6]} Rfe8 {[%emt 0:00:13]} (19... exf5 $1 $11 20. Be1 Qb6) 20. fxe6 $16 {[%emt 0:00:04]} Rxe6 {[%emt 0:00:02] [#]} 21. Qf3 $1 {[%emt 0:00:11] Threatens to win with Be1.} Rf6 {[%emt 0:00:07]} 22. Qh3 {[%emt 0:00:02]} Rd8 {[%emt 0:00:14]} 23. Bh4 {[%emt 0:00:06]} Rxf1+ {[%emt 0:00:02]} 24. Rxf1 {[%emt 0:00:02]} Be7 {[%emt 0:00:06] [#]} 25. Qf5 {[%emt 0:00:27] White is more active.} Bxh4 $2 {[%emt 0:00:07][%mdl 8192]} (25... Nf6 $11) 26. Qxf7+ $18 {[%emt 0:00:01]} Kh8 {[%emt 0:00:02] ...Bf6 is the strong threat.} 27. Qg6 {[%emt 0:00:01][%csl Gd3][%cal Rg6h7]} Bf2+ {[%emt 0:00:13]} 28. Rxf2 {[%emt 0:00:07][%csl Gd3][%cal Rg6h7]} Qe1+ {[%emt 0:00:01]} 29. Rf1 {[%emt 0:00:01][%csl Gd3][%cal Rg6h7]} Qe3+ {[%emt 0:00:02]} 30. Kh1 {[%emt 0:00:03]} Nf6 {[%emt 0:00:05] Dodges Qh7+} 31. Rxf6 {[%emt 0:00:03]} 1-0

[Event "European Women Blitz-ch 2024"]
[Site "Monaco"]
[Date "2025.01.10"]
[Round "2.8"]
[White "Rakhmangulova, Anastasiya"]
[Black "Khotenashvili, Bella"]
[Result "1-0"]
[Annotator "TA"]
[ECO "B15"]
[WhiteElo "2323"]
[BlackElo "2420"]
[PlyCount "107"]
[EventDate "2025.01.06"]
[EventType "swiss"]
[EventCountry "MNC"]
[SourceTitle "playchess.com"]
[Source "ChessBase"]
[SourceQuality "1"]
[TimeControl "180+2"]

{[%evp 40,106,0,0,32,0,0,-147,-147,-172,-191,-381,-263,-308,-204,-279,-261,-385,-260,-379,-78,-308,-105,-84,-94,-75,-64,-162,-91,-228,-206,-663,-498,-820,-339,-1102,-893,-1024,-271,-29999,0,-7,0,-10,-10,-200,0,0,0,0,0,0,28,29,39,45,6018,5627,2645,1934,29987,29977,29979,29978,29988,29989,29998,29999,29999]} 1. Nf3 {[%emt 0:00:01]} g6 {[%emt 0:00:01]} 2. d4 {[%emt 0:00:11]} Bg7 {[%emt 0:00:02]} 3. e4 {[%emt 0:00:05]} c6 {[%emt 0:00:05]} 4. h3 {[%emt 0:00:11]} d5 {[%emt 0:00:02]} 5. Nc3 {[%emt 0:00:01]} Nh6 {[%emt 0:00:02]} 6. Bd3 {[%emt 0:00:19]} O-O {[%emt 0:00:04]} 7. O-O {[%emt 0:00:09]} f6 {[%emt 0:00:01]} 8. exd5 {[%emt 0:00:16]} cxd5 {[%emt 0:00:02]} 9. Qe2 {[%emt 0:00:31]} Nf7 {[%emt 0:00:05]} 10. Bf4 {[%emt 0:00:21]} Nc6 {[%emt 0:00:01]} 11. Rad1 {[%emt 0:00:14]} e5 {[%emt 0:01:42]} 12. dxe5 {[%emt 0:00:04]} fxe5 {[%emt 0:00:01]} 13. Bg3 {[%emt 0:00:01]} Qa5 {[%emt 0:00:20]} 14. Bb5 {[%emt 0:00:09]} e4 {[%emt 0:00:10]} 15. Nh2 {[%emt 0:00:14]} Nd4 {[%emt 0:00:14]} 16. Rxd4 {[%emt 0:00:06]} Bxd4 {[%emt 0:00:01]} 17. Nxd5 {[%emt 0:00:03]} Bf5 {[%emt 0:00:13]} 18. Bc7 {[%emt 0:00:19]} Qxa2 {[%emt 0:00:06]} 19. Ne7+ {[%emt 0:00:05]} Kh8 {[%emt 0:00:01]} 20. c3 {[%emt 0:00:01]} Bb6 {[%emt 0:00:12]} 21. Bc4 {[%emt 0:00:01]} Qa5 {[%emt 0:00:01]} 22. Bg3 {[%emt 0:00:11]} Qc5 {[%emt 0:00:03]} 23. Nxf5 {[%emt 0:00:03]} (23. Nd5 $11) 23... gxf5 $17 {[%emt 0:00:02]} 24. b4 {[%emt 0:00:03]} Qe7 {[%emt 0:00:02]} 25. Qh5 $2 {[%emt 0:00:01]} (25. Nf3) 25... Nd6 {[%emt 0:00:06]} 26. Bd5 {[%emt 0:00:06]} Bc7 {[%emt 0:00:06]} 27. Bh4 {[%emt 0:00:01]} Qg7 {[%emt 0:00:01]} 28. Rd1 {[%emt 0:00:03]} (28. Rc1 {was worth a try.}) 28... Bd8 {[%emt 0:00:02]} (28... Qxc3 29. Bg5 $17) 29. Bg3 {[%emt 0:00:01]} (29. Be6 $142 Qg6 30. Qxg6 hxg6 31. Bg3) 29... Be7 $2 {[%emt 0:00:02]} (29... f4 $19 {and Black stays clearly on top.} 30. Bh4 Bxh4 (30... Qxc3 $2 31. Bxe4 Nxe4 32. Rd7 $18) 31. Qxh4 Rae8 (31... Qxc3 32. Bxb7 Rab8 33. Rxd6 $17)) 30. Ng4 $2 {[%emt 0:00:02] [#]} (30. Bf4 $17 {was forced.}) 30... fxg4 $2 {[%emt 0:00:02]} (30... f4 $1 $19 {[%cal Rf4g3]} 31. Bh4 Bxh4 (31... Rf5 $2 32. Qh6 $19) 32. Qxh4 Nf5 (32... Qxc3 $2 33. Bxe4 Rf7 34. Nh6 $18)) 31. Be5 $17 {[%emt 0:00:01]} Bf6 {[%emt 0:00:01]} 32. Bxd6 {[%emt 0:00:01]} Rfd8 {[%emt 0:00:00]} 33. Bc5 {[%emt 0:00:05]} (33. Bf4 $15) 33... gxh3 {[%emt 0:00:02]} ({Black should try} 33... Bxc3 $19 34. hxg4 Qe5) 34. Qxh3 {[%emt 0:00:02]} (34. g3 $17) 34... Bxc3 $19 {[%emt 0:00:03]} 35. Rc1 $2 {[%emt 0:00:02]} (35. Be7 Qxe7 36. Qxc3+ Qg7 37. Qe3) 35... Rxd5 {[%emt 0:00:01]} 36. Rxc3 {[%emt 0:00:02]} (36. Qxc3 $142 Qxc3 37. Rxc3) 36... Rad8 {[%emt 0:00:04]} (36... b6 $142 37. Qe6 Rd1+ (37... bxc5 38. Qxd5 Rg8 39. Rg3 $11) 38. Kh2 bxc5 (38... Qxc3 $2 39. Be7 $19) 39. Qxe4 Rf8 40. Rxc5 Qh6+ (40... Rxf2 41. Rc8+ Rf8 42. Rxf8+ Qxf8 43. Qe5+ Kg8 44. Qe6+ Qf7 45. Qg4+ Kf8 46. Qxd1 $11) 41. Kg3 Rd7) 37. Rg3 $2 {[%emt 0:00:01]} (37. Rc1) 37... Qe5 {[%emt 0:00:01]} 38. Be3 {[%emt 0:00:04]} R5d7 $2 {[%emt 0:00:14]} (38... Qh5 39. Bd4+ (39. Bxa7 $2 Qd1+ 40. Kh2 Rh5 $19) 39... Rxd4 40. Qxh5 R4d5 41. Qf7 Rd1+ 42. Kh2) (38... Qa1+ 39. Kh2 Rd1 40. Bd4+ Qxd4) 39. Rg5 $2 {[%emt 0:00:02]} (39. Bh6 $19) 39... Qa1+ $2 {[%emt 0:00:00]} (39... Rd1# {mates}) 40. Kh2 $11 {[%emt 0:00:01]} Rg7 {[%emt 0:00:00]} 41. Rxg7 {[%emt 0:00:04]} Qxg7 {[%emt 0:00:00]} 42. Qh4 $2 {[%emt 0:00:02]} (42. Qe6 $1 $11 Qc7+ 43. g3) 42... Rf8 $2 {[%emt 0:00:00]} (42... Rd5 $19 {...Qe5+ would now be deadly.} 43. Qf4 Qe7 44. Bxa7 Kg7 (44... Qxb4 $2 {perishes.} 45. Qf6+ Kg8 46. Qe6+ Kg7 47. Qxd5 $18) (44... Qd6 $2 45. Qxd6 Rxd6 46. Kg3 $19)) 43. Qxe4 $11 {[%emt 0:00:02]} Qc7+ {[%emt 0:00:00]} 44. g3 {[%emt 0:00:02]} Kg8 {[%emt 0:00:03]} 45. Bd4 {[%emt 0:00:00]} Rf7 {[%emt 0:00:03]} 46. Qg4+ {[%emt 0:00:02]} Kf8 {[%emt 0:00:00]} 47. Bc5+ {[%emt 0:00:01]} Ke8 $2 {[%emt 0:00:01][%mdl 8192]} (47... Re7 $14) 48. Qg8+ $18 {[%emt 0:00:01]} ({And not} 48. Bxa7 b6 49. Qg8+ Ke7 50. Qg5+ Kd7 51. Qb5+ Qc6 52. Qxb6 Qxb6 53. Bxb6 Kc6 $11) 48... Kd7 {[%emt 0:00:01]} 49. Qxf7+ {[%emt 0:00:01]} Kc6 {[%emt 0:00:00]} 50. Qf3+ {[%emt 0:00:01]} Kb5 {[%emt 0:00:01]} 51. Qd3+ {[%emt 0:00:01]} Ka4 {[%emt 0:00:01]} 52. Qc4 {[%emt 0:00:06]} Qd7 {[%emt 0:00:09]} 53. b5+ {[%emt 0:00:02]} Ka5 {[%emt 0:00:01]} 54. Qb4# {[%emt 0:00:01]} 1-0

[Event "European Women Blitz-ch 2024"]
[Site "Monaco"]
[Date "2025.01.10"]
[Round "2.9"]
[White "Narva, Mai"]
[Black "Prado Acebo, Ines"]
[Result "0-1"]
[Annotator "TA"]
[ECO "B87"]
[WhiteElo "2398"]
[BlackElo "2176"]
[PlyCount "74"]
[EventDate "2025.01.06"]
[EventType "swiss"]
[EventCountry "MNC"]
[SourceTitle "playchess.com"]
[Source "ChessBase"]
[SourceQuality "1"]
[TimeControl "180+2"]

{[%evp 14,74,0,0,135,137,141,138,139,131,139,140,139,139,127,136,163,161,162,144,197,202,235,148,145,116,109,50,98,90,180,-4,54,2,10,14,97,77,84,94,737,693,700,124,122,-6,0,-25,-31,-23,-31,-71,-50,-31,-57,-82,143,-774,-777,-776,-763,-1029,-1011]} 1. e4 {[%emt 0:00:02]} c5 {[%emt 0:00:01]} 2. Nf3 {[%emt 0:00:02]} d6 {[%emt 0:00:01]} 3. d4 {[%emt 0:00:01]} cxd4 {[%emt 0:00:02]} 4. Nxd4 {[%emt 0:00:02]} Nf6 {[%emt 0:00:01]} 5. Nc3 {[%emt 0:00:02]} a6 {[%emt 0:00:01]} 6. Bc4 {[%emt 0:00:02]} e6 {[%emt 0:00:02]} 7. Be3 {[%emt 0:00:01]} b5 {[%emt 0:00:31]} 8. Bb3 {[%emt 0:00:02]} Nbd7 {[%emt 0:00:13] [#]} (8... Be7 $11 {keeps the balance.}) 9. Bxe6 $1 $16 {[%emt 0:00:33][%mdl 512]} fxe6 {[%emt 0:00:15]} 10. Nxe6 {[%emt 0:00:02]} Qa5 {[%emt 0:00:04]} 11. a3 $1 {[%emt 0:00:02]} b4 {[%emt 0:00:38]} (11... Nxe4 $2 12. b4 Nxc3 13. Qf3 $18) 12. axb4 {[%emt 0:00:04]} Qxb4 {[%emt 0:00:05]} 13. Nc7+ {[%emt 0:00:09]} Kf7 {[%emt 0:00:04][%cal Ob4b2]} 14. Nxa8 {[%emt 0:00:04]} Qb7 {[%emt 0:00:11] [#] Against Nc7} 15. Qd4 $1 {[%emt 0:00:38]} Qxa8 {[%emt 0:00:10]} 16. Qc4+ {[%emt 0:00:06]} Kg6 {[%emt 0:00:06]} (16... d5 $16 {was called for.} 17. Nxd5 Nxd5) 17. f4 $18 {[%emt 0:00:17] Intending f5+ and mate.} h5 {[%emt 0:00:16]} 18. O-O {[%emt 0:00:27][%cal Oe4e5]} Bb7 {[%emt 0:00:05]} 19. Qe6 {[%emt 0:00:24]} Qe8 {[%emt 0:00:17]} 20. Qf5+ {[%emt 0:00:04]} (20. Qxe8+ $16 Nxe8 21. Ra4) 20... Kh6 {[%emt 0:00:07]} (20... Kf7 $14) 21. e5 $16 {[%emt 0:00:06]} Ng4 {[%emt 0:00:10]} (21... g6 $16 22. Qd3 Ng4) 22. Bd2 $2 {[%emt 0:00:08]} ({Only move:} 22. e6 $1 $18) 22... d5 {[%emt 0:00:04]} (22... g6 $11 23. Qd3 dxe5) 23. h3 {[%emt 0:00:07]} ({White should try} 23. Ra5 $14) 23... Bc5+ $11 {[%emt 0:00:06]} 24. Kh1 {[%emt 0:00:04]} g6 {[%emt 0:00:02]} (24... Nf2+ $11 25. Kh2 g6 (25... Rf8 26. Qg5+ Kh7 27. Rae1 $11) 26. Qg5+ Kg7) 25. Qg5+ $16 {[%emt 0:00:02]} Kg7 {[%emt 0:00:02]} 26. f5 $1 {[%emt 0:00:05]} (26. hxg4 $2 hxg4+) 26... Qxe5 $2 {[%emt 0:00:07][%mdl 8192]} (26... Ngxe5 $16 27. Rae1 Rf8) 27. Qxg6+ $18 {[%emt 0:00:03]} (27. hxg4 $2 hxg4+ $19) 27... Kf8 {[%emt 0:00:02]} 28. Bf4 $2 {[%emt 0:00:02]} (28. hxg4 $18 {and the rest is easy.} hxg4+ 29. Bh6+ Rxh6+ 30. Qxh6+ Qg7 31. Qh4) 28... Qf6 $16 {[%emt 0:00:04]} 29. Qxf6+ {[%emt 0:00:06]} (29. hxg4 hxg4+) (29. Rae1 $16 {[%csl Gg6][%cal Re1e8]} Nf2+ 30. Rxf2 (30. Kh2 Ne4 $16) 30... Qxg6 31. fxg6 Bxf2 32. Rf1 (32. g7+ Kxg7 33. Re7+ Kg6 $14)) 29... Ndxf6 {[%emt 0:00:04]} 30. Rae1 {[%emt 0:00:05][%cal Oe1e6] Dodges d4} (30. hxg4 hxg4+ 31. Bh2 g3) 30... Nf2+ {[%emt 0:00:02]} 31. Kh2 {[%emt 0:00:02]} N2e4 {[%emt 0:00:03] Excellent horsemanship.} 32. Be5 {[%emt 0:00:03] Strongly threatening Nxe4.} Rg8 {[%emt 0:00:04]} 33. Nxe4 {[%emt 0:00:05]} Nxe4 {[%emt 0:00:02]} 34. Rf4 {[%emt 0:00:03] [#]} Bf2 $2 {[%emt 0:00:03] [#]} (34... Kf7 $1 $17 {and life is bright. White must now prevent ...Re8.} 35. Re2 Re8) 35. Rexe4 $4 {[%emt 0:00:03][%mdl 8192]} Bg3+ $19 {[%emt 0:00:01]} 36. Kg1 {[%emt 0:00:01]} dxe4 {[%emt 0:00:01]} 37. Bd6+ {[%emt 0:00:02]} Kf7 {[%emt 0:00:02]} 0-1

[Event "European Women Blitz-ch 2024"]
[Site "Monaco"]
[Date "2025.01.10"]
[Round "2.10"]
[White "Hrebenshchykova, Yelyzaveta"]
[Black "Ushenina, Anna"]
[Result "0-1"]
[Annotator "TA"]
[ECO "B43"]
[WhiteElo "2280"]
[BlackElo "2418"]
[PlyCount "60"]
[EventDate "2025.01.06"]
[EventType "swiss"]
[EventCountry "MNC"]
[SourceTitle "playchess.com"]
[Source "ChessBase"]
[SourceQuality "1"]
[TimeControl "180+2"]

{[%evp 15,60,35,33,26,24,22,28,14,54,10,20,19,88,14,18,0,0,-2,0,-27,0,-10,-18,-64,0,-342,-345,-332,-325,-335,-299,-329,-330,-318,-213,-401,-147,-364,-348,-597,-597,-679,-678,-776,-748,-713,-714]} 1. e4 {[%emt 0:03:04]} c5 {[%emt 0:00:03]} 2. Nf3 {[%emt 0:00:00]} a6 {[%emt 0:00:03]} 3. Nc3 {[%emt 0:00:00]} e6 {[%emt 0:00:01]} 4. d4 {[%emt 0:00:00]} cxd4 {[%emt 0:00:01]} 5. Nxd4 {[%emt 0:00:00]} b5 {[%emt 0:00:01]} 6. Bd3 {[%emt 0:00:00]} Bb7 {[%emt 0:00:01]} 7. O-O {[%emt 0:00:00]} Nc6 {[%emt 0:00:02]} 8. Nxc6 {[%emt 0:00:00]} Bxc6 {[%emt 0:00:00]} 9. Qe2 {[%emt 0:00:00]} Qb8 {[%emt 0:00:07]} 10. a4 {[%emt 0:00:00]} b4 {[%emt 0:00:24]} 11. Nb1 {[%emt 0:00:00][%cal Of1e1]} (11. Nd5 $5) 11... Qb7 {[%emt 0:00:04]} 12. c4 {[%emt 0:00:00]} bxc3 {[%emt 0:00:09]} 13. Nxc3 {[%emt 0:00:00]} Ne7 {[%emt 0:00:20]} (13... Nf6 $11 {keeps the balance.}) 14. f4 {[%emt 0:00:00]} (14. Bd2 $16) 14... Ng6 $11 {[%emt 0:00:06]} 15. Bd2 {[%emt 0:00:00]} Bc5+ {[%emt 0:00:06]} 16. Kh1 {[%emt 0:00:00][%cal Ob2b4]} O-O {[%emt 0:00:05][%cal Of7f5]} 17. Rab1 {[%emt 0:00:00][%cal Ob2b4]} a5 {[%emt 0:00:47]} 18. Rf3 {[%emt 0:00:00]} f5 {[%emt 0:00:32]} 19. Rbf1 {[%emt 0:00:05]} (19. Rg3 $11) 19... Bd4 {[%emt 0:00:12] Black has more active pieces.} (19... Qxb2 $6 20. Rb1 Qa3 21. exf5 Bxf3 22. Qxf3 $11) (19... Bb4 $15 20. Re1 Rab8) 20. Nb5 $2 {[%emt 0:00:19][%mdl 8192]} (20. Rh3 $1 $11 {and White is okay.}) 20... fxe4 $19 {[%emt 0:00:13]} (20... Bxb2 21. Nd6 Qb8 22. Nb5 $17) 21. Nxd4 {[%emt 0:00:02]} exf3 {[%emt 0:00:03]} 22. Nxf3 {[%emt 0:00:00]} Qxb2 {[%emt 0:00:11]} 23. Bxg6 {[%emt 0:00:02]} hxg6 {[%emt 0:00:02]} 24. Ne5 {[%emt 0:00:03]} Qb7 {[%emt 0:00:07]} 25. Bc3 $2 {[%emt 0:00:04]} (25. Nxg6 Rf6 26. Ne7+ Kf7 27. Nxc6 Qxc6 28. Qd3) 25... Rf5 $2 {[%emt 0:00:05]} (25... Bxa4 $2 26. Nxg6 Qb5 27. Qf3 $17) (25... Be4 $19 26. h3 Rac8) 26. Kg1 $2 {[%emt 0:00:06]} (26. Nxg6 $17 Re8 (26... Bxa4 27. Ne7+ Kf8 28. Nxf5 $16) 27. Be5) 26... g5 {[%emt 0:00:01]} ({Don't play} 26... Bxa4 27. Nxg6 Re8 28. Qe3 $19) 27. Nxc6 $2 {[%emt 0:00:07]} (27. h4 {keeps fighting.}) 27... Qxc6 {[%emt 0:00:01]} (27... dxc6 $2 28. Qxe6+ Qf7 29. Qxf7+ Kxf7 (29... Rxf7 $2 30. fxg5 Rxf1+ 31. Kxf1 $19) 30. fxg5 Rxf1+ 31. Kxf1 $19) 28. Be5 {[%emt 0:00:02]} gxf4 {[%emt 0:00:03] and ...Qc5+ would now be decisive} 29. Bxf4 {[%emt 0:00:01]} Raf8 {[%emt 0:00:01]} 30. g3 {[%emt 0:00:01]} e5 {[%emt 0:00:03]} 0-1